fUST/lending_fUST_20250215
["ID","MTS","AMOUNT","RATE_DAILY","PERIOD"]
[353090292,1739548892784,200.0,8.7e-05,2]
[353090293,1739548968181,181.9920802,0.00018,30]
[353090353,1739549432496,-2255.6,0.00013061,2]
[353090355,1739549432508,-642.62244259,0.00013061,2]
[353090358,1739549432524,-4540.47509019,0.00013061,2]
[353090360,1739549432534,-900.0,0.00013068,2]
[353090361,1739549432544,-465.71691346,0.0001346,2]
[353090363,1739549432554,-435.69563797,0.00013598,2]
[353090365,1739549432564,-300.0,0.00013697,2]
[353090367,1739549432574,-500.0,0.00013698,2]
[353090369,1739549432583,-505.07339497,0.00013698,2]
[353090371,1739549432592,-500.0,0.00013698,2]
[353090372,1739549432605,-527.21,0.00013698,2]
[353090374,1739549432615,-503.34223926,0.00013698,2]
[353090376,1739549432625,-500.0,0.00013698,2]
[353090378,1739549432635,-500.0,0.00013698,2]
[353090380,1739549432645,-1000.0,0.00013698,2]
[353090381,1739549432656,-500.0,0.00013698,2]
[353090383,1739549432668,-500.0,0.00013698,2]
[353090385,1739549432677,-500.0,0.00013698,2]
[353090387,1739549432691,-500.0,0.00013698,2]
[353090389,1739549432701,-500.0,0.00013698,2]
[353090391,1739549432711,-500.0,0.00013698,2]
[353090393,1739549432726,-500.0,0.00013698,2]
[353090395,1739549432737,-500.0,0.00013698,2]
[353090397,1739549432747,-500.0,0.00013698,2]
[353090398,1739549432756,-500.0,0.00013698,2]
[353090400,1739549432765,-500.0,0.00013698,2]
[353090402,1739549432776,-500.0,0.00013698,2]
[353090404,1739549432786,-500.0,0.00013698,2]
[353090406,1739549432796,-500.0,0.00013698,2]
[353090408,1739549432806,-500.0,0.00013698,2]
[353090410,1739549432816,-501.14780937,0.00013698,2]
[353090411,1739549432826,-500.0,0.00013698,2]
[353090413,1739549432837,-500.0,0.00013698,2]
[353090415,1739549432847,-500.0,0.00013698,2]
[353090417,1739549432857,-503.45658692,0.00013698,2]
[353090419,1739549432867,-500.0,0.00013698,2]
[353090421,1739549432876,-500.0,0.00013698,2]
[353090423,1739549432886,-500.0,0.00013698,2]
[353090424,1739549432896,-500.0,0.00013698,2]
[353090426,1739549432906,-500.0,0.00013698,2]
[353090428,1739549432915,-501.56649725,0.00013698,2]
[353090430,1739549432926,-502.11434103,0.00013698,2]
[353090432,1739549432935,-501.69299135,0.00013698,2]
[353090434,1739549432945,-500.0,0.00013698,2]
[353090435,1739549432955,-595.65875474,0.00013698,2]
[353090437,1739549432965,-500.0,0.00013698,2]
[353090439,1739549432974,-601.71,0.00013698,2]
[353090441,1739549432986,-500.0,0.00013698,2]
[353090443,1739549432997,-501.01678089,0.00013698,2]
[353090445,1739549433007,-500.0,0.00013698,2]
[353090446,1739549433017,-495.0,0.00013698,2]
[353090448,1739549433027,-500.0,0.00013698,2]
[353090450,1739549433038,-500.0,0.00013698,2]
[353090452,1739549433048,-500.0,0.00013698,2]
[353090454,1739549433062,-500.0,0.00013698,2]
[353090456,1739549433072,-500.0,0.00013698,2]
[353090458,1739549433082,-502.50574112,0.00013698,2]
[353090460,1739549433093,-500.0,0.00013698,2]
[353090462,1739549433103,-500.0,0.00013698,2]
[353090463,1739549433113,-500.0,0.00013698,2]
[353090465,1739549433123,-1361.78,0.00013698,2]
[353090467,1739549433133,-847.77,0.00013698,2]
[353090469,1739549433143,-1494.31,0.00013698,2]
[353090471,1739549433152,-500.0,0.00013698,2]
[353090473,1739549433164,-500.0,0.00013698,2]
[353090474,1739549433173,-503.90206591,0.00013698,2]
[353090476,1739549433183,-355.9463624,0.00013698,2]
[353090478,1739549433194,-503.7709852,0.00013698,2]
[353090480,1739549433205,-500.0,0.00013698,2]
[353090482,1739549433215,-642.35,0.00013698,2]
[353090483,1739549433225,-500.0,0.00013698,2]
[353090485,1739549433236,-500.0,0.00013698,2]
[353090487,1739549433246,-1146.17,0.00013698,2]
[353090489,1739549433257,-500.0,0.00013698,2]
[353090491,1739549433267,-306.57359155,0.00013698,2]
[353090493,1739549433277,-492.50337023,0.00013698,2]
[353090494,1739549433287,-500.0,0.00013698,2]
[353090496,1739549433297,-500.0,0.00013698,2]
[353090498,1739549433307,-500.0,0.00013698,2]
[353090500,1739549433317,-359.64086363,0.00013698,2]
[353090502,1739549433327,-1427.1,0.00013698,2]
[353090504,1739549433338,-501.78935841,0.00013698,2]
[353090506,1739549433348,-500.0,0.00013698,2]
[353090507,1739549433357,-500.0,0.00013698,2]
[353090509,1739549433369,-535.96,0.00013698,2]
[353090511,1739549433379,-524.21,0.00013698,2]
[353090513,1739549433389,-512.87525425,0.00013698,2]
[353090515,1739549433399,-500.0,0.00013698,2]
[353090517,1739549433409,-500.0,0.00013698,2]
[353090518,1739549433427,-643.82150707,0.00013698,2]
[353090520,1739549433437,-1075.24,0.00013698,2]
[353090522,1739549433447,-409.64694853,0.00013698,2]
[353090524,1739549433458,-1162.26,0.00013698,2]
[353090526,1739549433468,-500.0,0.00013698,2]
[353090528,1739549433479,-624.29,0.00013698,2]
[353090530,1739549433489,-525.9,0.00013698,2]
[353090531,1739549433499,-500.0,0.00013698,2]
[353090532,1739549433508,-500.0,0.00013698,2]
[353090534,1739549433518,-2395.79,0.00013698,2]
[353090536,1739549433528,-512.26,0.00013698,2]
[353090537,1739549433537,-500.0,0.00013698,2]
[353090539,1739549433547,-500.0,0.00013698,2]
[353090541,1739549433557,-246.0496229,0.00013698,2]
[353090543,1739549433567,-1553.27,0.00013698,2]
[353090544,1739549433577,-278.28394851,0.00013698,2]
[353090547,1739549433593,-221.71605149,0.00013698,2]
[353090549,1739549433603,-168.56637451,0.00013698,2]
[353090579,1739549438387,-688.92362549,0.00013698,2]
[353090580,1739549438397,-500.0,0.00013698,2]
[353090581,1739549438408,-3287.02,0.00013698,2]
[353090582,1739549438418,-500.0,0.00013698,2]
[353090584,1739549438427,-670.93162885,0.00013698,2]
[353090603,1739549440562,-1492.15837115,0.00013698,2]
[353090604,1739549440572,-322.17438099,0.00013698,2]
[353090605,1739549440585,-6488.94561901,0.00013698,2]
[353090606,1739549440595,-500.0,0.00013698,2]
[353090607,1739549440608,-500.0,0.00013698,2]
[353090608,1739549440618,-500.0,0.00013698,2]
[353090609,1739549440628,-500.0,0.00013698,2]
[353090610,1739549440781,-11437.32,0.00013698,2]
[353090611,1739549440797,-500.0,0.00013698,2]
[353090612,1739549440808,-500.0,0.00013698,2]
[353090613,1739549440818,-500.0,0.00013698,2]
[353090614,1739549440827,-625.78,0.00013698,2]
[353090615,1739549440837,-500.0,0.00013698,2]
[353090616,1739549440847,-500.0,0.00013698,2]
[353090617,1739549440857,-500.0,0.00013698,2]
[353090618,1739549440867,-500.0,0.00013698,2]
[353090619,1739549440879,-1107.51,0.00013698,2]
[353090620,1739549440888,-500.0,0.00013698,2]
[353090621,1739549440898,-795.3,0.00013698,2]
[353090622,1739549440908,-3557.46,0.00013698,2]
[353090623,1739549440918,-590.12568633,0.00013698,2]
[353090624,1739549440927,-500.0,0.00013698,2]
[353090625,1739549440937,-4627.68,0.00013698,2]
[353090626,1739549440947,-500.0,0.00013698,2]
[353090627,1739549440957,-1014.95,0.00013698,2]
[353090628,1739549440967,-327.18047127,0.00013698,2]
[353090629,1739549440988,-402.45482502,0.00013698,2]
[353090630,1739549441011,-500.0,0.00013698,2]
[353090631,1739549441032,-500.0,0.00013698,2]
[353090632,1739549441254,-500.0,0.00013698,2]
[353090633,1739549441264,-500.0,0.00013698,2]
[353090634,1739549441275,-500.0,0.00013698,2]
[353090635,1739549441284,-500.0,0.00013698,2]
[353090636,1739549441294,-500.0,0.00013698,2]
[353090637,1739549441303,-500.0,0.00013698,2]
[353090638,1739549441313,-500.0,0.00013698,2]
[353090639,1739549441322,-367.09,0.00013698,2]
[353090640,1739549441332,-500.0,0.00013698,2]
[353090641,1739549441341,-1852.98,0.00013698,2]
[353090642,1739549441350,-500.0,0.00013698,2]
[353090643,1739549441360,-500.0,0.00013698,2]
[353090644,1739549441369,-500.0,0.00013698,2]
[353090645,1739549441380,-1621.75,0.00013698,2]
[353090646,1739549441390,-500.0,0.00013698,2]
[353090647,1739549441400,-500.0,0.00013698,2]
[353090648,1739549441410,-500.0,0.00013698,2]
[353090649,1739549441420,-428.35306669,0.00013698,2]
[353090650,1739549441430,-504.6760624,0.00013698,2]
[353090651,1739549441440,-589.91,0.00013698,2]
[353090652,1739549441450,-500.0,0.00013698,2]
[353090653,1739549441459,-500.0,0.00013698,2]
[353090654,1739549441469,-500.0,0.00013698,2]
[353090655,1739549441479,-500.0,0.00013698,2]
[353090656,1739549441492,-500.0,0.00013698,2]
[353090657,1739549441502,-500.0,0.00013698,2]
[353090658,1739549441512,-1187.1,0.00013698,2]
[353090659,1739549441522,-500.0,0.00013698,2]
[353090660,1739549441532,-1161.63,0.00013698,2]
[353090661,1739549441543,-500.0,0.00013698,2]
[353090662,1739549441554,-500.0,0.00013698,2]
[353090663,1739549441563,-500.0,0.00013698,2]
[353090664,1739549441573,-500.0,0.00013698,2]
[353090665,1739549441582,-500.0,0.00013698,2]
[353090666,1739549441592,-500.0,0.00013698,2]
[353090667,1739549441601,-183.62,0.00013698,2]
[353090668,1739549441613,-500.0,0.00013698,2]
[353090669,1739549441623,-1897.38,0.00013698,2]
[353090670,1739549441632,-404.48,0.00013698,2]
[353090671,1739549441642,-38968.77,0.00013698,2]
[353090672,1739549441654,-500.0,0.00013698,2]
[353090673,1739549441664,-500.73809489,0.00013698,2]
[353090674,1739549441675,-500.0,0.00013698,2]
[353090675,1739549441685,-500.0,0.00013698,2]
[353090676,1739549441696,-500.0,0.00013698,2]
[353090677,1739549441706,-500.0,0.00013698,2]
[353090678,1739549441716,-1891.36,0.00013698,2]
[353090679,1739549441725,-500.0,0.00013698,2]
[353090680,1739549441735,-16924.75,0.00013698,2]
[353090681,1739549441744,-604.39,0.00013698,2]
[353090682,1739549441754,-500.0,0.00013698,2]
[353090683,1739549441764,-1209.98,0.00013698,2]
[353090684,1739549441775,-500.0,0.00013698,2]
[353090685,1739549441785,-3191.2,0.00013698,2]
[353090686,1739549441795,-500.0,0.00013698,2]
[353090687,1739549441805,-1843.0,0.00013698,2]
[353090688,1739549441815,-500.0,0.00013698,2]
[353090689,1739549441825,-507.02,0.00013698,2]
[353090690,1739549441834,-500.0,0.00013698,2]
[353090691,1739549441844,-515.25,0.00013698,2]
[353090692,1739549441853,-500.0,0.00013698,2]
[353090693,1739549441863,-1589.05,0.00013698,2]
[353090694,1739549441873,-1254.11,0.00013698,2]
[353090695,1739549441882,-7383.99,0.00013698,2]
[353090696,1739549441893,-2898.87,0.00013698,2]
[353090697,1739549441903,-500.0,0.00013698,2]
[353090698,1739549441913,-500.0,0.00013698,2]
[353090699,1739549441923,-754.48,0.00013698,2]
[353090700,1739549441933,-1521.03,0.00013698,2]
[353090701,1739549441943,-500.0,0.00013698,2]
[353090702,1739549441953,-500.0,0.00013698,2]
[353090703,1739549441962,-535.7,0.00013698,2]
[353090704,1739549441972,-246.39210696,0.00013698,2]
[353090705,1739549441981,-500.0,0.00013698,2]
[353090706,1739549441992,-500.0,0.00013698,2]
[353090707,1739549442002,-500.0,0.00013698,2]
[353090708,1739549442012,-500.0,0.00013698,2]
[353090709,1739549442022,-500.0,0.00013698,2]
[353090710,1739549442031,-503.07482528,0.00013698,2]
[353090711,1739549442041,-3747.42,0.00013698,2]
[353090712,1739549442051,-329.89469285,0.00013698,2]
[353090713,1739549442061,-663.94,0.00013698,2]
[353090714,1739549442071,-320.63034166,0.00013698,2]
[353090715,1739549442080,-500.0,0.00013698,2]
[353090716,1739549442090,-3190.62,0.00013698,2]
[353090717,1739549442099,-500.0,0.00013698,2]
[353090718,1739549442108,-500.0,0.00013698,2]
[353090719,1739549442118,-2295.97,0.00013698,2]
[353090720,1739549442127,-500.0,0.00013698,2]
[353090721,1739549442136,-500.0,0.00013698,2]
[353090722,1739549442146,-502.619868,0.00013699,2]
[353090723,1739549442156,-502.619868,0.00013699,2]
[353090724,1739549442166,-1103.797936,0.00013699,2]
[353090725,1739549442175,-150.17566469,0.00013699,2]
[353090726,1739549442184,-10023.58808196,0.00013705,2]
[353090727,1739549442194,-435.69563793,0.00013751,2]
[353090728,1739549442204,-20438.2789231,0.00013763,2]
[353090729,1739549442215,-420.0,0.00013779,2]
[353090730,1739549442224,-608.05601702,0.00013779,2]
[353090731,1739549442235,-500.0,0.00013779,2]
[353090732,1739549442244,-500.0,0.00013779,2]
[353090733,1739549442254,-500.0,0.00013779,2]
[353090734,1739549442263,-316.37808988,0.00013779,2]
[353090735,1739549442272,-527.21,0.0001378,2]
[353090736,1739549442282,-500.0,0.0001378,2]
[353090737,1739549442292,-500.0,0.0001378,2]
[353090738,1739549442301,-500.0,0.0001378,2]
[353090739,1739549442311,-601.71,0.0001378,2]
[353090740,1739549442322,-500.0,0.0001378,2]
[353090741,1739549442332,-500.0,0.0001378,2]
[353090742,1739549442341,-500.0,0.0001378,2]
[353090743,1739549442350,-1361.78,0.0001378,2]
[353090744,1739549442360,-847.77,0.0001378,2]
[353090745,1739549442369,-1494.31,0.0001378,2]
[353090746,1739549442378,-500.0,0.0001378,2]
[353090747,1739549442388,-642.35,0.0001378,2]
[353090748,1739549442399,-500.0,0.0001378,2]
[353090749,1739549442410,-1146.17,0.0001378,2]
[353090750,1739549442420,-500.0,0.0001378,2]
[353090751,1739549442431,-500.0,0.0001378,2]
[353090752,1739549442440,-624.21105461,0.0001378,2]
[353090753,1739549442449,-1427.1,0.0001378,2]
[353090754,1739549442458,-535.96,0.0001378,2]
[353090755,1739549442469,-524.21,0.0001378,2]
[353090756,1739549442479,-500.0,0.0001378,2]
[353090757,1739549442492,-500.0,0.0001378,2]
[353090758,1739549442501,-1075.24,0.0001378,2]
[353090759,1739549442510,-1162.26,0.0001378,2]
[353090760,1739549442519,-500.0,0.0001378,2]
[353090761,1739549442529,-624.29,0.0001378,2]
[353090762,1739549442540,-525.9,0.0001378,2]
[353090763,1739549442549,-500.0,0.0001378,2]
[353090764,1739549442559,-500.0,0.0001378,2]
[353090765,1739549442568,-500.0,0.0001378,2]
[353090766,1739549442579,-1553.27,0.0001378,2]
[353090767,1739549442589,-857.49,0.0001378,2]
[353090768,1739549442599,-500.0,0.0001378,2]
[353090769,1739549442609,-3287.02,0.0001378,2]
[353090770,1739549442621,-500.0,0.0001378,2]
[353090771,1739549442631,-2163.09,0.0001378,2]
[353090772,1739549442640,-6811.12,0.0001378,2]
[353090773,1739549442651,-500.0,0.0001378,2]
[353090774,1739549442660,-11437.32,0.0001378,2]
[353090775,1739549442670,-500.0,0.0001378,2]
[353090776,1739549442679,-625.78,0.0001378,2]
[353090777,1739549442691,-419.73504551,0.0001378,2]
[353090778,1739549442700,-500.0,0.0001378,2]
[353090779,1739549442710,-500.0,0.0001378,2]
[353090781,1739549442720,-1107.51,0.0001378,2]
[353090782,1739549442730,-500.0,0.0001378,2]
[353090783,1739549442741,-795.3,0.0001378,2]
[353090784,1739549442750,-3557.46,0.0001378,2]
[353090785,1739549442760,-500.0,0.0001378,2]
[353090786,1739549442770,-4627.68,0.0001378,2]
[353090787,1739549442779,-1014.95,0.0001378,2]
[353090788,1739549442789,-500.0,0.0001378,2]
[353090789,1739549442799,-1852.98,0.0001378,2]
[353090790,1739549442808,-500.0,0.0001378,2]
[353090791,1739549442818,-1621.75,0.0001378,2]
[353090792,1739549442827,-500.0,0.0001378,2]
[353090793,1739549442836,-589.91,0.0001378,2]
[353090795,1739549442846,-500.0,0.0001378,2]
[353090797,1739549442855,-1187.1,0.0001378,2]
[353090799,1739549442865,-1161.63,0.0001378,2]
[353090801,1739549442874,-500.0,0.0001378,2]
[353090803,1739549442883,-500.0,0.0001378,2]
[353090806,1739549442893,-500.0,0.0001378,2]
[353090809,1739549442902,-1897.38,0.0001378,2]
[353090812,1739549442912,-38968.77,0.0001378,2]
[353090815,1739549442922,-500.0,0.0001378,2]
[353090818,1739549442931,-262.66571303,0.0001378,2]
[353090821,1739549442941,-500.0,0.0001378,2]
[353090823,1739549442950,-1891.36,0.0001378,2]
[353090825,1739549442960,-500.0,0.0001378,2]
[353090828,1739549442969,-16924.75,0.0001378,2]
[353090830,1739549442978,-604.39,0.0001378,2]
[353090833,1739549442991,-500.0,0.0001378,2]
[353090835,1739549443001,-1209.98,0.0001378,2]
[353090837,1739549443011,-3191.2,0.0001378,2]
[353090838,1739549443020,-500.0,0.0001378,2]
[353090840,1739549443030,-1843.0,0.0001378,2]
[353090842,1739549443040,-500.0,0.0001378,2]
[353090844,1739549443049,-507.02,0.0001378,2]
[353090846,1739549443059,-500.0,0.0001378,2]
[353090848,1739549443068,-515.25,0.0001378,2]
[353090850,1739549443077,-1589.05,0.0001378,2]
[353090853,1739549443087,-1254.11,0.0001378,2]
[353090855,1739549443096,-7383.99,0.0001378,2]
[353090857,1739549443108,-2898.87,0.0001378,2]
[353090859,1739549443118,-500.0,0.0001378,2]
[353090862,1739549443127,-754.48,0.0001378,2]
[353090864,1739549443136,-1521.03,0.0001378,2]
[353090866,1739549443146,-535.7,0.0001378,2]
[353090868,1739549443155,-430.50208452,0.0001378,2]
[353090869,1739549443165,-500.0,0.0001378,2]
[353090871,1739549443174,-500.0,0.0001378,2]
[353090874,1739549443185,-500.0,0.0001378,2]
[353090876,1739549443195,-3747.42,0.0001378,2]
[353090878,1739549443205,-663.94,0.0001378,2]
[353090880,1739549443214,-500.0,0.0001378,2]
[353090882,1739549443224,-3190.62,0.0001378,2]
[353090884,1739549443235,-500.0,0.0001378,2]
[353090886,1739549443244,-500.0,0.0001378,2]
[353090888,1739549443254,-2295.97,0.0001378,2]
[353090890,1739549443264,-500.0,0.0001378,2]
[353090892,1739549443273,-151.0,0.000138,2]
[353090894,1739549443284,-151.0,0.000138,2]
[353090896,1739549443293,-151.0,0.000138,2]
[353090898,1739549443302,-154.666516,0.000138,2]
[353090900,1739549443312,-527.21,0.00013863,2]
[353090902,1739549443321,-500.0,0.00013863,2]
[353090904,1739549443331,-500.0,0.00013863,2]
[353090906,1739549443341,-601.71,0.00013863,2]
[353090908,1739549443351,-500.0,0.00013863,2]
[353090910,1739549443360,-500.0,0.00013863,2]
[353090912,1739549443370,-500.0,0.00013863,2]
[353090914,1739549443380,-1361.78,0.00013863,2]
[353090916,1739549443390,-847.77,0.00013863,2]
[353090917,1739549443399,-1494.31,0.00013863,2]
[353090918,1739549443409,-500.0,0.00013863,2]
[353090919,1739549443419,-642.35,0.00013863,2]
[353090921,1739549443428,-500.0,0.00013863,2]
[353090922,1739549443438,-1146.17,0.00013863,2]
[353090924,1739549443448,-500.0,0.00013863,2]
[353090925,1739549443458,-1427.1,0.00013863,2]
[353090927,1739549443467,-535.96,0.00013863,2]
[353090928,1739549443477,-524.21,0.00013863,2]
[353090929,1739549443487,-500.0,0.00013863,2]
[353090930,1739549443496,-500.0,0.00013863,2]
[353090931,1739549443606,-1075.24,0.00013863,2]
[353090932,1739549443632,-1162.26,0.00013863,2]
[353090933,1739549443642,-500.0,0.00013863,2]
[353090934,1739549443653,-624.29,0.00013863,2]
[353090935,1739549443663,-525.9,0.00013863,2]
[353090936,1739549443672,-219.7,0.00013863,2]
[353090937,1739549443682,-500.0,0.00013863,2]
[353090938,1739549443694,-1553.27,0.00013863,2]
[353090939,1739549443703,-857.49,0.00013863,2]
[353090940,1739549443713,-500.0,0.00013863,2]
[353090941,1739549443722,-3287.02,0.00013863,2]
[353090942,1739549443732,-500.0,0.00013863,2]
[353090943,1739549443743,-2163.09,0.00013863,2]
[353090944,1739549443752,-6811.12,0.00013863,2]
[353090945,1739549443762,-525.38353301,0.00013863,2]
[353090946,1739549443771,-6511.5161059,0.00013863,2]
[353090947,1739549444085,-396.0,0.00013463,2]
[353090948,1739549444096,-2985.75668981,0.00013863,2]
[353090949,1739549444118,-1940.04720429,0.00013863,2]
[353090950,1739549444129,-500.0,0.00013863,2]
[353090951,1739549444140,-625.78,0.00013863,2]
[353090952,1739549444152,-1107.51,0.00013863,2]
[353090953,1739549444161,-500.0,0.00013863,2]
[353090954,1739549444171,-795.3,0.00013863,2]
[353090955,1739549444180,-252.74351775,0.00013863,2]
[353090956,1739549444192,-2277.03144804,0.00013863,2]
[353091000,1739550397133,618.2,0.00018,30]
[353091046,1739550632497,-436.33522896,0.00010684,2]
[353091048,1739550632511,-1614.66477104,0.00010684,2]
[353091049,1739550632521,-158.940585,0.00010685,2]
[353091050,1739550632531,-173.0010287,0.00012862,2]
[353091052,1739550632541,-900.0,0.00013068,2]
[353091053,1739550632551,-7438.69753278,0.00013104,2]
[353091055,1739550632561,-300.0,0.00013138,2]
[353091057,1739550632573,-153.0,0.000135,2]
[353091058,1739550632582,-431.7599296,0.000135,2]
[353091059,1739550632593,-13272.15463196,0.00013501,2]
[353091060,1739550632603,-69.4638044,0.00013598,2]
[353091061,1739550632615,-341.57561381,0.00013598,2]
[353091062,1739550632624,-154.7299507,0.000136,2]
[353091063,1739550632635,-500.0,0.00013673,2]
[353091064,1739550632644,-396.08985287,0.00013698,2]
[353091065,1739550632654,-500.0,0.00013698,2]
[353091066,1739550632664,-500.0,0.00013698,2]
[353091067,1739550632674,-500.0,0.00013698,2]
[353091068,1739550632684,-500.0,0.00013698,2]
[353091069,1739550632693,-500.0,0.00013698,2]
[353091070,1739550632703,-500.0,0.00013698,2]
[353091071,1739550632713,-500.0,0.00013698,2]
[353091072,1739550632723,-500.0,0.00013698,2]
[353091073,1739550632733,-500.0,0.00013698,2]
[353091074,1739550632742,-500.0,0.00013698,2]
[353091075,1739550632753,-513.11074289,0.00013698,2]
[353091076,1739550632763,-500.0,0.00013698,2]
[353091077,1739550632774,-500.0,0.00013698,2]
[353091078,1739550632784,-500.0,0.00013698,2]
[353091079,1739550632795,-113.74878517,0.00013698,2]
[353091080,1739550632807,-386.25121483,0.00013698,2]
[353091081,1739550632820,-500.0,0.00013698,2]
[353091082,1739550632830,-500.0,0.00013698,2]
[353091083,1739550632839,-500.0,0.00013698,2]
[353091084,1739550632850,-500.0,0.00013698,2]
[353091085,1739550632860,-500.0,0.00013698,2]
[353091086,1739550632870,-500.0,0.00013698,2]
[353091087,1739550632879,-500.0,0.00013698,2]
[353091088,1739550632890,-501.24955235,0.00013698,2]
[353091089,1739550632905,-500.0,0.00013698,2]
[353091090,1739550632916,-500.0,0.00013698,2]
[353091091,1739550632925,-500.0,0.00013698,2]
[353091092,1739550632935,-506.44761698,0.00013698,2]
[353091093,1739550632944,-500.0,0.00013698,2]
[353091094,1739550632954,-500.0,0.00013698,2]
[353091095,1739550632965,-500.0,0.00013698,2]
[353091096,1739550632975,-500.0,0.00013698,2]
[353091097,1739550632986,-500.0,0.00013698,2]
[353091098,1739550632999,-265.81682535,0.00013698,2]
[353091099,1739550633008,-500.0,0.00013698,2]
[353091100,1739550633018,-500.0,0.00013698,2]
[353091101,1739550633028,-586.9400182,0.00013698,2]
[353091102,1739550633038,-309.43324102,0.00013698,2]
[353091103,1739550633048,-500.0,0.00013698,2]
[353091104,1739550633059,-500.0,0.00013698,2]
[353091105,1739550633072,-500.0,0.00013698,2]
[353091106,1739550633083,-500.0,0.00013698,2]
[353091107,1739550633094,-507.16011455,0.00013698,2]
[353091108,1739550633105,-500.0,0.00013698,2]
[353091109,1739550633115,-500.0,0.00013698,2]
[353091110,1739550633126,-500.0,0.00013698,2]
[353091111,1739550633136,-500.0,0.00013698,2]
[353091112,1739550633146,-540.92187827,0.00013698,2]
[353091113,1739550633157,-500.0,0.00013698,2]
[353091114,1739550633169,-500.0,0.00013698,2]
[353091115,1739550633179,-500.0,0.00013698,2]
[353091116,1739550633190,-500.0,0.00013698,2]
[353091117,1739550633200,-500.0,0.00013698,2]
[353091118,1739550633210,-500.0,0.00013698,2]
[353091119,1739550633220,-514.83592159,0.00013698,2]
[353091120,1739550633230,-500.0,0.00013698,2]
[353091121,1739550633240,-449.46208928,0.00013698,2]
[353091122,1739550633250,-500.0,0.00013698,2]
[353091123,1739550633261,-399.1824436,0.00013698,2]
[353091124,1739550633271,-182.26280745,0.00013698,2]
[353091125,1739550633282,-500.0,0.00013698,2]
[353091126,1739550633292,-500.0,0.00013698,2]
[353091127,1739550633302,-796.11,0.00013698,2]
[353091128,1739550633314,-500.0,0.00013698,2]
[353091129,1739550633324,-500.0,0.00013698,2]
[353091130,1739550633334,-500.0,0.00013698,2]
[353091131,1739550633347,-500.0,0.00013698,2]
[353091132,1739550633357,-866.8,0.00013698,2]
[353091133,1739550633367,-500.0,0.00013698,2]
[353091134,1739550633377,-500.0,0.00013698,2]
[353091135,1739550633387,-500.0,0.00013698,2]
[353091136,1739550633396,-500.0,0.00013698,2]
[353091137,1739550633407,-501.5379233,0.00013698,2]
[353091138,1739550633417,-500.0,0.00013698,2]
[353091139,1739550633427,-500.0,0.00013698,2]
[353091140,1739550633437,-500.0,0.00013698,2]
[353091141,1739550633448,-500.0,0.00013698,2]
[353091142,1739550633458,-222.09203194,0.00013698,2]
[353091143,1739550633469,-500.0,0.00013698,2]
[353091144,1739550633479,-500.0,0.00013698,2]
[353091145,1739550633488,-500.0,0.00013698,2]
[353091146,1739550633499,-500.0,0.00013698,2]
[353091147,1739550633511,-472.19035724,0.00013698,2]
[353091148,1739550633521,-500.0,0.00013698,2]
[353091149,1739550633531,-532.91,0.00013698,2]
[353091150,1739550633541,-500.0,0.00013698,2]